Workbook

Sheet Datos (hidden)
B1: Mes: | E1: =MID(P1,1,3) -> Ene | F1: 1 | P1: Enero
B2: Año: | C2: 2016 | P2: Febrero
A3: VOLUMEN DE SERVICIOS FINANCIEROS BÁSICOS | P3: Marzo
A4: VOLUMEN | B4: Unidad de Medida | C4: =C2 -> 2016 | P4: Abril | R4: VOLUMEN | S4: Unidad de Medida | T4: =CONCATENATE("VARIACIÓN ",C2,"/",C2-1," (%)") -> VARIACIÓN 2016/2015 (%)
C5: Ene | D5: Feb | E5: Mar | F5: Abr | G5: May | H5: Jun | I5: Jul | J5: Ago | K5: Sep | L5: Oct | M5: Nov | N5: Dic | O5: Total | P5: Mayo | T5: Ene | U5: Feb | V5: Mar | W5: Abr | X5: May | Y5: Jun | Z5: Jul | AA5: Ago | AB5: Sep | AC5: Oct | AD5: Nov | AE5: Dic | AF5: Total
A6: Servicios Financieros Básicos (I + II + III) | B6: Miles de Operaciones | C6: =SUM(C7:C9) -> 3332.576 | D6: 0 | E6: 0 | F6: 0 | G6: 0 | H6: 0 | I6: 0 | J6: 0 | K6: 0 | L6: 0 | M6: 0 | N6: 0 | O6: =SUM(C6:N6) -> 3332.576 | P6: Junio | R6: Servicios Financieros Básicos (I + II + III) | S6: Miles de Operaciones | T6: =(C6/C13-1)*100 -> 1.29200977 | AF6: 1.29200977
A7: Remesas Internacionales de Dinero | C7: 311.543 | O7: =SUM(C7:N7) -> 311.543 | P7: Julio | R7: I.- Remesas Internacionales de Dinero | T7: 9.082919587 | U7: =(D7/D14-1)*100 ->  | AF7: 9.082919587
A8: Remesas Nacionales de Dinero | C8: 2919.171 | O8: =SUM(C8:N8) -> 2919.171 | P8: Agosto | R8: II.- Remesas Nacionales de Dinero | T8: 0.7205983122 | AF8: 0.7205983122
A9: Servicios de Comunicación | C9: 101.862 | O9: =SUM(C9:N9) -> 101.862 | P9: Septiembre | R9: III.- Servicios de Comunicación | T9: -4.066679224 | AF9: -4.066679224
P10: Octubre
A11: VOLUMEN | B11: Unidad de Medida | C11: =C4-1 -> 2015 | P11: Noviembre
C12: Ene | D12: Feb | E12: Mar | F12: Abr | G12: May | H12: Jun | I12: Jul | J12: Ago | K12: Sep | L12: Oct | M12: Nov | N12: Dic | O12: Total | P12: Diciembre
A13: Servicios Financieros Básicos (I + II + III) | B13: Miles de Operaciones | C13: =SUM(C14:C16) -> 3290.068 | D13: 0 | E13: 0 | F13: 0 | G13: 0 | H13: 0 | I13: 0 | J13: 0 | K13: 0 | L13: 0 | M13: 0 | N13: 0 | O13: =SUM(C13:N13) -> 3290.068
A14: Remesas Internacionales de Dinero | C14: 285.602 | O14: =SUM(C14:N14) -> 285.602 | P14: ENERO 2016
A15: Remesas Nacionales de Dinero | C15: 2898.286 | O15: =SUM(C15:N15) -> 2898.286 | P15: VARIACIÓN ENERO 2016/2015 (%)
A16: Servicios de Comunicación | C16: 106.18 | O16: =SUM(C16:N16) -> 106.18 | P16: ENERO 2015
A18: VOLUMEN DE REMESAS INTERNACIONALES DE DINERO
A19: VOLUMEN | B19: Unidad de Medida | C19: =C2 -> 2016 | R19: VOLUMEN | S19: Unidad de Medida | T19: =CONCATENATE("VARIACIÓN ",C2,"/",C2-1," (%)") -> VARIACIÓN 2016/2015 (%)
C20: Ene | D20: Feb | E20: Mar | F20: Abr | G20: May | H20: Jun | I20: Jul | J20: Ago | K20: Sep | L20: Oct | M20: Nov | N20: Dic | O20: Total | T20: Ene | U20: Feb | V20: Mar | W20: Abr | X20: May | Y20: Jun | Z20: Jul | AA20: Ago | AB20: Sep | AC20: Oct | AD20: Nov | AE20: Dic | AF20: Total
A21: I.- Remesas Internacionales de Dinero | B21: Miles de Operaciones | C21: =SUM(C22:C24) -> 311.543 | D21: 0 | E21: 0 | F21: 0 | G21: 0 | H21: 0 | I21: 0 | J21: 0 | K21: 0 | L21: 0 | M21: 0 | N21: 0 | O21: =SUM(C21:N21) -> 311.543 | R21: I.- Remesas Internacionales de Dinero | S21: Miles de Operaciones | T21: =(C21/C28-1)*100 -> 9.082919587 | AF21: 9.082919587
A22: Giro telegráfico internacional | C22: 9.997 | O22: =SUM(C22:N22) -> 9.997 | R22: Giro telegráfico | T22: 3.746367787 | AF22: 3.746367787
A23: Servicios de Western Union Financial Services | C23: 84.18 | O23: =SUM(C23:N23) -> 84.18 | R23: Servicios de Western Union Financial Services | T23: 0.1344165963 | AF23: 0.1344165963
A24: Giro Paisano | C24: 217.366 | O24: =SUM(C24:N24) -> 217.366 | R24: Giro Paisano | T24: 13.27104362 | AF24: 13.27104362
A26: VOLUMEN | B26: Unidad de Medida | C26: =C19-1 -> 2015
C27: Ene | D27: Feb | E27: Mar | F27: Abr | G27: May | H27: Jun | I27: Jul | J27: Ago | K27: Sep | L27: Oct | M27: Nov | N27: Dic | O27: Total
A28: I.- Remesas Internacionales de Dinero | B28: Miles de Operaciones | C28: =SUM(C29:C31) -> 285.602 | D28: 0 | E28: 0 | F28: 0 | G28: 0 | H28: 0 | I28: 0 | J28: 0 | K28: 0 | L28: 0 | M28: 0 | N28: 0 | O28: =SUM(C28:N28) -> 285.602
A29: Giro telegráfico internacional | C29: 9.636 | O29: =SUM(C29:N29) -> 9.636
A30: Servicios de Western Union Financial Services | C30: 84.067 | O30: =SUM(C30:N30) -> 84.067
A31: Giro Paisano | C31: 191.899 | O31: =SUM(C31:N31) -> 191.899
A33: VOLUMEN DE REMESAS NACIONALES DE DINERO
A34: VOLUMEN | B34: Unidad de Medida | C34: =C2 -> 2016 | R34: VOLUMEN | S34: Unidad de Medida | T34: =CONCATENATE("VARIACIÓN ",C2,"/",C2-1," (%)") -> VARIACIÓN 2016/2015 (%)
C35: Ene | D35: Feb | E35: Mar | F35: Abr | G35: May | H35: Jun | I35: Jul | J35: Ago | K35: Sep | L35: Oct | M35: Nov | N35: Dic | O35: Total | T35: Ene | U35: Feb | V35: Mar | W35: Abr | X35: May | Y35: Jun | Z35: Jul | AA35: Ago | AB35: Sep | AC35: Oct | AD35: Nov | AE35: Dic | AF35: Total
A36: II.- Remesas Nacionales de Dinero | B36: Miles de Operaciones | C36: =SUM(C37:C40) -> 2919.171 | D36: 0 | E36: 0 | F36: 0 | G36: 0 | H36: 0 | I36: 0 | J36: 0 | K36: 0 | L36: 0 | M36: 0 | N36: 0 | O36: =SUM(C36:N36) -> 2919.171 | R36: II.- Remesas Nacionales de Dinero | S36: Miles de Operaciones | T36: =(C36/C44-1)*100 -> 0.7205983122 | AF36: 0.7205983122
A37: Giro telegráfico nacional | C37: 190.576 | O37: =SUM(C37:N37) -> 190.576 | R37: Giro telegráfico | T37: -11.5886359 | AF37: -11.5886359
A38: Pago a Programas Sociales | C38: 102.129 | O38: =SUM(C38:N38) -> 102.129 | R38: Pago a Programas Sociales | T38: 188.9898132 | AF38: 188.9898132
A39: Servicios a Cuenta de Terceros | C39: 1620.762 | O39: =SUM(C39:N39) -> 1620.762 | R39: Servicios a Cuenta de Terceros | T39: -4.992411759 | AF39: -4.992411759
A40: Corresponsalía Bancaria | C40: 1005.704 | O40: =SUM(C40:N40) -> 1005.704 | R40: Corresponsalía Bancaria | T40: 6.823755843 | AF40: 6.823755843
A42: VOLUMEN | B42: Unidad de Medida | C42: =C34-1 -> 2015
C43: Ene | D43: Feb | E43: Mar | F43: Abr | G43: May | H43: Jun | I43: Jul | J43: Ago | K43: Sep | L43: Oct | M43: Nov | N43: Dic | O43: Total
A44: II.- Remesas Nacionales de Dinero | B44: Miles de Operaciones | C44: =SUM(C45:C48) -> 2898.286 | D44: 0 | E44: 0 | F44: 0 | G44: 0 | H44: 0 | I44: 0 | J44: 0 | K44: 0 | L44: 0 | M44: 0 | N44: 0 | O44: =SUM(C44:N44) -> 2898.286
A45: Giro telegráfico nacional | C45: 215.556 | O45: =SUM(C45:N45) -> 215.556
A46: Pago a Programas Sociales | C46: 35.34 | O46: =SUM(C46:N46) -> 35.34
A47: Servicios a Cuenta de Terceros | C47: 1705.929 | O47: =SUM(C47:N47) -> 1705.929
A48: Corresponsalía Bancaria | C48: 941.461 | O48: =SUM(C48:N48) -> 941.461
A50: VOLUMEN DE SERVICIOS DE COMUNICACIÓN
A51: VOLUMEN | B51: Unidad de Medida | C51: =C2 -> 2016 | R51: VOLUMEN | S51: Unidad de Medida | T51: =CONCATENATE("VARIACIÓN ",C2,"/",C2-1," (%)") -> VARIACIÓN 2016/2015 (%)
C52: Ene | D52: Feb | E52: Mar | F52: Abr | G52: May | H52: Jun | I52: Jul | J52: Ago | K52: Sep | L52: Oct | M52: Nov | N52: Dic | O52: Total | T52: Ene | U52: Feb | V52: Mar | W52: Abr | X52: May | Y52: Jun | Z52: Jul | AA52: Ago | AB52: Sep | AC52: Oct | AD52: Nov | AE52: Dic | AF52: Total
A53: III.- Servicios de Comunicación | B53: Miles de Operaciones | C53: =SUM(C54:C55) -> 101.862 | D53: 0 | E53: 0 | F53: 0 | G53: 0 | H53: 0 | I53: 0 | J53: 0 | K53: 0 | L53: 0 | M53: 0 | N53: 0 | O53: =SUM(C53:N53) -> 101.862 | R53: III.- Servicios de Comunicación | S53: Miles de Operaciones | T53: =(C53/C59-1)*100 -> -4.066679224 | AF53: -4.066679224
A54: Telegramas | C54: 101.838 | O54: =SUM(C54:N54) -> 101.838 | R54: Telegramas | T54: -4.021488149 | AF54: -4.021488149
A55: Fax | C55: 0.024 | O55: =SUM(C55:N55) -> 0.024 | R55: Fax | T55: -68 | AF55: -68
A57: VOLUMEN | B57: Unidad de Medida | C57: =C51-1 -> 2015
C58: Ene | D58: Feb | E58: Mar | F58: Abr | G58: May | H58: Jun | I58: Jul | J58: Ago | K58: Sep | L58: Oct | M58: Nov | N58: Dic | O58: Total
A59: III.- Servicios de Comunicación | B59: Miles de Operaciones | C59: =SUM(C60:C61) -> 106.18 | D59: 0 | E59: 0 | F59: 0 | G59: 0 | H59: 0 | I59: 0 | J59: 0 | K59: 0 | L59: 0 | M59: 0 | N59: 0 | O59: =SUM(C59:N59) -> 106.18
A60: Telegramas | C60: 106.105 | O60: =SUM(C60:N60) -> 106.105
A61: Fax | C61: 0.075 | O61: =SUM(C61:N61) -> 0.075
A63: VOLUMEN DE SERVICIOS MÓVILES SATELITALES
A64: SERVICIOS MÓVILES SATELITALES | B64: Unidad de Medida | C64: =C2 -> 2016
C65: Ene | D65: Feb | E65: Mar | F65: Abr | G65: May | H65: Jun | I65: Jul | J65: Ago | K65: Sep | L65: Oct | M65: Nov | N65: Dic | O65: Total
A66: MOVISAT VOZ
A67: Terminales | B67: Terminales | C67: =SUM(C68:C69) -> 7178 | D67: 0 | E67: 0 | F67: 0 | G67: 0 | H67: 0 | I67: 0 | J67: 0 | K67: 0 | L67: 0 | M67: 0 | N67: 0 | O67: 7178
A68: Telefonía Rural Banda KU | C68: 3389 | O68: 3389
A69: Telefonía Rural Banda KU (11K) | C69: 3789 | O69: 3789
A71: SERVICIOS MÓVILES SATELITALES | B71: Unidad de Medida | C71: =C64-1 -> 2015
C72: Ene | D72: Feb | E72: Mar | F72: Abr | G72: May | H72: Jun | I72: Jul | J72: Ago | K72: Sep | L72: Oct | M72: Nov | N72: Dic | O72: Total
A73: MOVISAT VOZ
A74: Terminales | B74: Terminales | C74: =SUM(C75:C76) -> 7200 | D74: 0 | E74: 0 | F74: 0 | G74: 0 | H74: 0 | I74: 0 | J74: 0 | K74: 0 | L74: 0 | M74: 0 | N74: 0 | O74: 7200
A75: Telefonía Rural Banda KU | C75: 3387 | O75: 3387
A76: Telefonía Rural Banda KU (11K) | C76: 3813 | O76: 3813
A78: SERVICIOS MÓVILES SATELITALES | B78: Unidad de Medida | C78: =C2 -> 2016
C79: Ene | D79: Feb | E79: Mar | F79: Abr | G79: May | H79: Jun | I79: Jul | J79: Ago | K79: Sep | L79: Oct | M79: Nov | N79: Dic | O79: Total
A80: MOVISAT VOZ
A81: Minutos | B81: Miles de minutos | C81: =SUM(C82:C83) -> 622.43 | D81: 0 | E81: 0 | F81: 0 | G81: 0 | H81: 0 | I81: 0 | J81: 0 | K81: 0 | L81: 0 | M81: 0 | N81: 0 | O81: =SUM(C81:N81) -> 622.43
A82: Telefonía Rural Banda Ku | C82: 279.981 | O82: 279.981
A83: Telefonía Rural Banda KU (11k) | C83: 342.449 | O83: 342.449
A85: SERVICIOS MÓVILES SATELITALES | B85: Unidad de Medida | C85: =C78-1 -> 2015
C86: Ene | D86: Feb | E86: Mar | F86: Abr | G86: May | H86: Jun | I86: Jul | J86: Ago | K86: Sep | L86: Oct | M86: Nov | N86: Dic | O86: Total
A87: MOVISAT VOZ
A88: Minutos | B88: Miles de minutos | C88: =SUM(C89:C90) -> 1327.923 | D88: 0 | E88: 0 | F88: 0 | G88: 0 | H88: 0 | I88: 0 | J88: 0 | K88: 0 | L88: 0 | M88: 0 | N88: 0 | O88: =SUM(C88:N88) -> 1327.923
A89: Telefonía Rural Banda Ku | C89: 268.023 | O89: 268.023
A90: Telefonía Rural Banda KU (11k) | C90: 1059.9 | O90: 1059.9
A92: SERVICIOS MÓVILES SATELITALES | B92: Unidad de Medida | C92: =C2 -> 2016
C93: Ene | D93: Feb | E93: Mar | F93: Abr | G93: May | H93: Jun | I93: Jul | J93: Ago | K93: Sep | L93: Oct | M93: Nov | N93: Dic | O93: Total
A94: MOVISAT VOZ
A95: Llamadas | B95: Miles de llamadas | C95: =SUM(C96:C97) -> 975.458 | D95: 0 | E95: 0 | F95: 0 | G95: 0 | H95: 0 | I95: 0 | J95: 0 | K95: 0 | L95: 0 | M95: 0 | N95: 0 | O95: =SUM(C95:N95) -> 975.458
A96: Telefonía Rural Banda Ku | C96: 63.545 | O96: 63.545
A97: Telefonía Rural Banda KU (11k) | C97: 911.913 | O97: 911.913
A99: SERVICIOS MÓVILES SATELITALES | B99: Unidad de Medida | C99: =C92-1 -> 2015
C100: Ene | D100: Feb | E100: Mar | F100: Abr | G100: May | H100: Jun | I100: Jul | J100: Ago | K100: Sep | L100: Oct | M100: Nov | N100: Dic | O100: Total
A101: MOVISAT VOZ
A102: Llamadas | B102: Miles de llamadas | C102: =SUM(C103:C104) -> 471.027 | D102: 0 | E102: 0 | F102: 0 | G102: 0 | H102: 0 | I102: 0 | J102: 0 | K102: 0 | L102: 0 | M102: 0 | N102: 0 | O102: =SUM(C102:N102) -> 471.027
A103: Telefonía Rural Banda Ku | C103: 65.129 | O103: 65.129
A104: Telefonía Rural Banda KU (11k) | C104: 405.898 | O104: 405.898
A106: VOLUMEN DE SERVICIOS SATELITALES DE TELEPUERTOS
A107: TELEPUERTOS | B107: Unidad de Medida | C107: =C2 -> 2016 | R107: TELEPUERTOS | S107: Unidad de Medida | T107: =CONCATENATE("VARIACIÓN ",C2,"/",C2-1," (%)") -> VARIACIÓN 2016/2015 (%)
C108: Ene | D108: Feb | E108: Mar | F108: Abr | G108: May | H108: Jun | I108: Jul | J108: Ago | K108: Sep | L108: Oct | M108: Nov | N108: Dic | O108: Total | T108: Ene | U108: Feb | V108: Mar | W108: Abr | X108: May | Y108: Jun | Z108: Jul | AA108: Ago | AB108: Sep | AC108: Oct | AD108: Nov | AE108: Dic | AF108: Total
A109: Televisión | R109: Televisión
A110: TV Permanente | B110: Red | C110: 4 | O110: 4 | R110: T.V Permanente | S110: Red | T110: =(C110/C127-1)*100 -> 0 | U110: =IF(ISERROR((D110/D127-1)*100),,(D110/D127-1)*100) -> 0 | V110: =IF(ISERROR((E110/E127-1)*100),,(E110/E127-1)*100) -> 0 | W110: =IF(ISERROR((F110/F127-1)*100),,(F110/F127-1)*100) -> 0 | X110: =IF(ISERROR((G110/G127-1)*100),,(G110/G127-1)*100) -> 0 | Y110: =IF(ISERROR((H110/H127-1)*100),,(H110/H127-1)*100) -> 0 | Z110: =IF(ISERROR((I110/I127-1)*100),,(I110/I127-1)*100) -> 0 | AA110: =IF(ISERROR((J110/J127-1)*100),,(J110/J127-1)*100) -> 0 | AB110: =IF(ISERROR((K110/K127-1)*100),,(K110/K127-1)*100) -> 0 | AC110: =IF(ISERROR((L110/L127-1)*100),,(L110/L127-1)*100) -> 0 | AD110: =IF(ISERROR((M110/M127-1)*100),,(M110/M127-1)*100) -> 0 | AE110: =IF(ISERROR((N110/N127-1)*100),,(N110/N127-1)*100) -> 0 | AF110: =(O110/O127-1)*100 -> 0
A111: Enlaces locales | B111: Enlaces | C111: 22 | O111: 22 | R111: Enlaces locales | S111: Enlaces | T111: 0 | U111: 0 | V111: 0 | W111: 0 | X111: 0 | Y111: 0 | Z111: 0 | AA111: 0 | AB111: 0 | AC111: 0 | AD111: 0 | AE111: 0 | AF111: 0
A112: Enrutamientos | B112: Enlaces | C112: 4 | O112: 4 | R112: Enrutamiento | S112: Enlaces | T112: 33.33333333 | U112: 0 | V112: 0 | W112: 0 | X112: 0 | Y112: 0 | Z112: 0 | AA112: 0 | AB112: 0 | AC112: 0 | AD112: 0 | AE112: 0 | AF112: 33.33333333
A113: Estaciones Terrenas para Voz y Datos | B113: Enlaces | C113: 1 | O113: 1 | R113: Estaciones Terrenas para Voz y Datos | S113: Enlaces | T113: 0 | U113: 0 | V113: 0 | W113: 0 | X113: 0 | Y113: 0 | Z113: 0 | AA113: 0 | AB113: 0 | AC113: 0 | AD113: 0 | AE113: 0 | AF113: 0
A114: Estaciones Terrenas receptoras | B114: Eventos | C114: 1 | O114: =SUM(C114:N114) -> 1 | R114: Estaciones Terrenas receptoras | S114: Eventos | T114: 0 | U114: 0 | V114: 0 | W114: 0 | X114: 0 | Y114: 0 | Z114: 0 | AA114: 0 | AB114: 0 | AC114: 0 | AD114: 0 | AE114: 0 | AF114: 0
A115: Uso de capacidad satelital | B115: Mhz. | C115: 144 | O115: 144 | R115: Uso de capacidad satelital | S115: Mhz. | T115: 14.2041399 | U115: 0 | V115: 0 | W115: 0 | X115: 0 | Y115: 0 | Z115: 0 | AA115: 0 | AB115: 0 | AC115: 0 | AD115: 0 | AE115: 0 | AF115: 14.2041399
A116: Interconexión de redes | B116: Equipos | C116: 16 | O116: 16 | R116: Interconexión de redes | S116: Equipos | T116: 6.666666667 | U116: 0 | V116: 0 | W116: 0 | X116: 0 | Y116: 0 | Z116: 0 | AA116: 0 | AB116: 0 | AC116: 0 | AD116: 0 | AE116: 0 | AF116: 6.666666667
A117: TV ocasional | B117: Eventos | C117: 0 | O117: =SUM(C117:N117) -> 0 | R117: T.V Ocasional | S117: Eventos | T117: =IF(ISERROR((C117/C134-1)*100),,(C117/C134-1)*100) -> 0 | U117: 0 | V117: 0 | W117: 0 | X117: 0 | Y117: 0 | Z117: 0 | AA117: 0 | AB117: 0 | AC117: 0 | AD117: 0 | AE117: 0 | AF117: =IF(ISERROR((O117/O134-1)*100),,(O117/O134-1)*100) -> 0
A118: Giras presidenciales | B118: Giras | C118: 6 | O118: =SUM(C118:N118) -> 6 | R118: Giras Presidenciales | S118: Giras | T118: =IF(ISERROR((C118/C135-1)*100),,(C118/C135-1)*100) -> 0 | U118: 0 | V118: 0 | W118: 0 | X118: 0 | Y118: 0 | Z118: 0 | AA118: 0 | AB118: 0 | AC118: 0 | AD118: 0 | AE118: 0 | AF118: =IF(ISERROR((O118/O135-1)*100),,(O118/O135-1)*100) -> 0
A119: Enlaces Terrenas Transportables | B119: Renta | C119: 0 | O119: =SUM(C119:N119) -> 0 | R119: Enlaces Terrenas Transportables | S119: Renta | T119: =IF(ISERROR((C119/C136-1)*100),,(C119/C136-1)*100) -> 0 | U119: 0 | V119: 0 | W119: 0 | X119: 0 | Y119: 0 | Z119: 0 | AA119: 0 | AB119: 0 | AC119: 0 | AD119: 0 | AE119: 0 | AF119: =IF(ISERROR((O119/O136-1)*100),,(O119/O136-1)*100) -> 0
A120: Tiempo de arrendamiento | B120: Días | C120: 0 | O120: =SUM(C120:N120) -> 0 | R120: Tiempo de Arrendamiento | S120: Días | T120: =IF(ISERROR((C120/C137-1)*100),,(C120/C137-1)*100) -> 0 | U120: 0 | V120: 0 | W120: 0 | X120: 0 | Y120: 0 | Z120: 0 | AA120: 0 | AB120: 0 | AC120: 0 | AD120: 0 | AE120: 0 | AF120: =IF(ISERROR((O120/O137-1)*100),,(O120/O137-1)*100) -> 0
A121: Centro de Datos | B121: Unidad Interconexión (mts2) | R121: Centro de Datos | S121: Unidad Interconexión (mts2)
A122: Hosting | C122: 122 | O122: 122 | R122: Hosting | T122: =(C122/C139-1)*100 -> 0 | U122: =IF(ISERROR((D122/D139-1)*100),,(D122/D139-1)*100) -> 0 | V122: 0 | W122: 0 | X122: 0 | Y122: 0 | Z122: 0 | AA122: 0 | AB122: 0 | AC122: 0 | AD122: 0 | AE122: 0 | AF122: 0
A124: TELEPUERTOS | B124: Unidad de Medida | C124: =C107-1 -> 2015
C125: Ene | D125: Feb | E125: Mar | F125: Abr | G125: May | H125: Jun | I125: Jul | J125: Ago | K125: Sep | L125: Oct | M125: Nov | N125: Dic | O125: Total
A126: Televisión
A127: TV Permanente | B127: Red | C127: 4 | O127: 4
A128: Enlaces locales | B128: Enlaces | C128: 22 | O128: 22
A129: Enrutamientos | B129: Enlaces | C129: 3 | O129: 3
A130: Estaciones Terrenas para Voz y Datos | B130: Enlaces | C130: 1 | O130: 1
A131: Estaciones Terrenas receptoras | B131: Eventos | C131: 1 | O131: =SUM(C131:N131) -> 1
A132: Uso de capacidad satelital | B132: Mhz. | C132: 126.09 | O132: 126.09
A133: Interconexión de redes | B133: Equipos | C133: 15 | O133: 15
A134: TV ocasional | B134: Eventos | C134: 0 | O134: =SUM(C134:N134) -> 0
A135: Giras presidenciales | B135: Giras | C135: 0 | O135: =SUM(C135:N135) -> 0
A136: Enlaces Terrenas Transportables | B136: Renta | C136: 0 | O136: =SUM(C136:N136) -> 0
A137: Tiempo de arrendamiento | B137: Días | C137: 0 | O137: =SUM(C137:N137) -> 0
A138: Centro de Datos | B138: Unidad Interconexión (mts2)
A139: Hosting | C139: 122 | O139: 122

Sheet Estadisticas
B15: REPORTE MENSUAL DE
B21: ESTADÍSTICAS RELEVANTES
L34: ENERO 2016
B35: ÍNDICE
B40: VOLUMEN DE SERVICIOS FINANCIEROS BÁSICOS ENERO 2016 | P40: 2
B45: VOLUMEN DE REMESAS INTERNACIONALES DE DINERO ENERO 2016 | P45: 3
B50: VOLUMEN DE REMESAS NACIONALES DE DINERO ENERO 2016 | P50: 4
B55: VOLUMEN DE SERVICIOS DE COMUNICACIÓN ENERO 2016 | P55: 5
B60: VOLUMEN DE SERVICIOS MÓVILES SATELITALES ENERO 2016 | P60: 6
B65: VOLUMEN DE SERVICIOS SATELITALES DE TELEPUERTOS ENERO 2016 | P65: 9
B69: VOLUMEN DE SERVICIOS FINANCIEROS BÁSICOS
B70: ENERO 2016
B73: VOLUMEN | C73: Unidad de Medida | D73: =Datos!C4 -> 2016
D74: Ene | E74: Feb | F74: Mar | G74: Abr | H74: May | I74: Jun | J74: Jul | K74: Ago | L74: Sep | M74: Oct | N74: Nov | O74: Dic | P74: Total
B75: Servicios Financieros Básicos (I + II + III) | C75: Miles de Operaciones | D75: =Datos!C6 -> 3332.576 | E75: =Datos!D6 -> 0 | F75: =Datos!E6 -> 0 | G75: =Datos!F6 -> 0 | H75: =Datos!G6 -> 0 | I75: =Datos!H6 -> 0 | J75: =Datos!I6 -> 0 | K75: =Datos!J6 -> 0 | L75: =Datos!K6 -> 0 | M75: =Datos!L6 -> 0 | N75: =Datos!M6 -> 0 | O75: =Datos!N6 -> 0 | P75: =Datos!O6 -> 3332.576
B76: I.- Remesas Internacionales de Dinero | D76: =Datos!C7 -> 311.543 | E76: =Datos!D7 -> 0 | F76: =Datos!E7 -> 0 | G76: =Datos!F7 -> 0 | H76: =Datos!G7 -> 0 | I76: =Datos!H7 -> 0 | J76: =Datos!I7 -> 0 | K76: =Datos!J7 -> 0 | L76: =Datos!K7 -> 0 | M76: =Datos!L7 -> 0 | N76: =Datos!M7 -> 0 | O76: =Datos!N7 -> 0 | P76: =Datos!O7 -> 311.543
B77: II.- Remesas Nacionales de Dinero | D77: =Datos!C8 -> 2919.171 | E77: =Datos!D8 -> 0 | F77: =Datos!E8 -> 0 | G77: =Datos!F8 -> 0 | H77: =Datos!G8 -> 0 | I77: =Datos!H8 -> 0 | J77: =Datos!I8 -> 0 | K77: =Datos!J8 -> 0 | L77: =Datos!K8 -> 0 | M77: =Datos!L8 -> 0 | N77: =Datos!M8 -> 0 | O77: =Datos!N8 -> 0 | P77: =Datos!O8 -> 2919.171
B78: III.- Servicios de Comunicación | D78: =Datos!C9 -> 101.862 | E78: =Datos!D9 -> 0 | F78: =Datos!E9 -> 0 | G78: =Datos!F9 -> 0 | H78: =Datos!G9 -> 0 | I78: =Datos!H9 -> 0 | J78: =Datos!I9 -> 0 | K78: =Datos!J9 -> 0 | L78: =Datos!K9 -> 0 | M78: =Datos!L9 -> 0 | N78: =Datos!M9 -> 0 | O78: =Datos!N9 -> 0 | P78: =Datos!O9 -> 101.862
G91: Notas: I. La disminución en el servicio de telegramas y de fax se debió al uso de nuevos medios de comunicación.
B95: VOLUMEN DE REMESAS INTERNACIONALES DE DINERO
B96: ENERO 2016
B99: VOLUMEN | C99: Unidad de Medida | D99: =Datos!C19 -> 2016
D100: Ene | E100: Feb | F100: Mar | G100: Abr | H100: May | I100: Jun | J100: Jul | K100: Ago | L100: Sep | M100: Oct | N100: Nov | O100: Dic | P100: Total
B101: I.- Remesas Internacionales de Dinero | C101: Miles de Operaciones | D101: =Datos!C21 -> 311.543 | E101: =Datos!D21 -> 0 | F101: =Datos!E21 -> 0 | G101: =Datos!F21 -> 0 | H101: =Datos!G21 -> 0 | I101: =Datos!H21 -> 0 | J101: =Datos!I21 -> 0 | K101: =Datos!J21 -> 0 | L101: =Datos!K21 -> 0 | M101: =Datos!L21 -> 0 | N101: =Datos!M21 -> 0 | O101: =Datos!N21 -> 0 | P101: =Datos!O21 -> 311.543
B102: Giro telegráfico | D102: =Datos!C22 -> 9.997 | E102: =Datos!D22 -> 0 | F102: =Datos!E22 -> 0 | G102: =Datos!F22 -> 0 | H102: =Datos!G22 -> 0 | I102: =Datos!H22 -> 0 | J102: =Datos!I22 -> 0 | K102: =Datos!J22 -> 0 | L102: =Datos!K22 -> 0 | M102: =Datos!L22 -> 0 | N102: =Datos!M22 -> 0 | O102: =Datos!N22 -> 0 | P102: =Datos!O22 -> 9.997
B103: Servicios de Western Union Financial Services | D103: =Datos!C23 -> 84.18 | E103: =Datos!D23 -> 0 | F103: =Datos!E23 -> 0 | G103: =Datos!F23 -> 0 | H103: =Datos!G23 -> 0 | I103: =Datos!H23 -> 0 | J103: =Datos!I23 -> 0 | K103: =Datos!J23 -> 0 | L103: =Datos!K23 -> 0 | M103: =Datos!L23 -> 0 | N103: =Datos!M23 -> 0 | O103: =Datos!N23 -> 0 | P103: =Datos!O23 -> 84.18
B104: Giro Paisano | D104: =Datos!C24 -> 217.366 | E104: =Datos!D24 -> 0 | F104: =Datos!E24 -> 0 | G104: =Datos!F24 -> 0 | H104: =Datos!G24 -> 0 | I104: =Datos!H24 -> 0 | J104: =Datos!I24 -> 0 | K104: =Datos!J24 -> 0 | L104: =Datos!K24 -> 0 | M104: =Datos!L24 -> 0 | N104: =Datos!M24 -> 0 | O104: =Datos!N24 -> 0 | P104: =Datos!O24 -> 217.366
G117: Notas: La disminución de la operación se debe a la competencia que realizan las empresas que proporcionan servicios similares.
B121: VOLUMEN DE REMESAS NACIONALES DE DINERO
B122: ENERO 2016
B125: VOLUMEN | C125: Unidad de Medida | D125: =Datos!C34 -> 2016
D126: Ene | E126: Feb | F126: Mar | G126: Abr | H126: May | I126: Jun | J126: Jul | K126: Ago | L126: Sep | M126: Oct | N126: Nov | O126: Dic | P126: Total
B127: II.- Remesas Nacionales de Dinero | C127: Miles de Operaciones | D127: =Datos!C36 -> 2919.171 | E127: =Datos!D36 -> 0 | F127: =Datos!E36 -> 0 | G127: =Datos!F36 -> 0 | H127: =Datos!G36 -> 0 | I127: =Datos!H36 -> 0 | J127: =Datos!I36 -> 0 | K127: =Datos!J36 -> 0 | L127: =Datos!K36 -> 0 | M127: =Datos!L36 -> 0 | N127: =Datos!M36 -> 0 | O127: =Datos!N36 -> 0 | P127: =Datos!O36 -> 2919.171
B128: Giro telegráfico | D128: =Datos!C37 -> 190.576 | E128: =Datos!D37 -> 0 | F128: =Datos!E37 -> 0 | G128: =Datos!F37 -> 0 | H128: =Datos!G37 -> 0 | I128: =Datos!H37 -> 0 | J128: =Datos!I37 -> 0 | K128: =Datos!J37 -> 0 | L128: =Datos!K37 -> 0 | M128: =Datos!L37 -> 0 | N128: =Datos!M37 -> 0 | O128: =Datos!N37 -> 0 | P128: =Datos!O37 -> 190.576
B129: Pago a Programas Sociales | D129: =Datos!C38 -> 102.129 | E129: =Datos!D38 -> 0 | F129: =Datos!E38 -> 0 | G129: =Datos!F38 -> 0 | H129: =Datos!G38 -> 0 | I129: =Datos!H38 -> 0 | J129: =Datos!I38 -> 0 | K129: =Datos!J38 -> 0 | L129: =Datos!K38 -> 0 | M129: =Datos!L38 -> 0 | N129: =Datos!M38 -> 0 | O129: =Datos!N38 -> 0 | P129: =Datos!O38 -> 102.129
B130: Servicios a Cuenta de Terceros | D130: =Datos!C39 -> 1620.762 | E130: =Datos!D39 -> 0 | F130: =Datos!E39 -> 0 | G130: =Datos!F39 -> 0 | H130: =Datos!G39 -> 0 | I130: =Datos!H39 -> 0 | J130: =Datos!I39 -> 0 | K130: =Datos!J39 -> 0 | L130: =Datos!K39 -> 0 | M130: =Datos!L39 -> 0 | N130: =Datos!M39 -> 0 | O130: =Datos!N39 -> 0 | P130: =Datos!O39 -> 1620.762
B131: Corresponsalía Bancaria | D131: =Datos!C40 -> 1005.704 | E131: =Datos!D40 -> 0 | F131: =Datos!E40 -> 0 | G131: =Datos!F40 -> 0 | H131: =Datos!G40 -> 0 | I131: =Datos!H40 -> 0 | J131: =Datos!I40 -> 0 | K131: =Datos!J40 -> 0 | L131: =Datos!K40 -> 0 | M131: =Datos!L40 -> 0 | N131: =Datos!M40 -> 0 | O131: =Datos!N40 -> 0 | P131: =Datos!O40 -> 1005.704
B148: VOLUMEN DE SERVICIOS DE COMUNICACIÓN
B149: ENERO 2016
B152: VOLUMEN | C152: Unidad de Medida | D152: =Datos!C51 -> 2016
D153: Ene | E153: Feb | F153: Mar | G153: Abr | H153: May | I153: Jun | J153: Jul | K153: Ago | L153: Sep | M153: Oct | N153: Nov | O153: Dic | P153: Total
B154: III.- Servicios de Comunicación | C154: Miles de Operaciones | D154: =Datos!C53 -> 101.862 | E154: =Datos!D53 -> 0 | F154: =Datos!E53 -> 0 | G154: =Datos!F53 -> 0 | H154: =Datos!G53 -> 0 | I154: =Datos!H53 -> 0 | J154: =Datos!I53 -> 0 | K154: =Datos!J53 -> 0 | L154: =Datos!K53 -> 0 | M154: =Datos!L53 -> 0 | N154: =Datos!M53 -> 0 | O154: =Datos!N53 -> 0 | P154: =Datos!O53 -> 101.862
B155: Telegramas | D155: =Datos!C54 -> 101.838 | E155: =Datos!D54 -> 0 | F155: =Datos!E54 -> 0 | G155: =Datos!F54 -> 0 | H155: =Datos!G54 -> 0 | I155: =Datos!H54 -> 0 | J155: =Datos!I54 -> 0 | K155: =Datos!J54 -> 0 | L155: =Datos!K54 -> 0 | M155: =Datos!L54 -> 0 | N155: =Datos!M54 -> 0 | O155: =Datos!N54 -> 0 | P155: =Datos!O54 -> 101.838
B156: Fax | D156: =Datos!C55 -> 0.024 | E156: =Datos!D55 -> 0 | F156: =Datos!E55 -> 0 | G156: =Datos!F55 -> 0 | H156: =Datos!G55 -> 0 | I156: =Datos!H55 -> 0 | J156: =Datos!I55 -> 0 | K156: =Datos!J55 -> 0 | L156: =Datos!K55 -> 0 | M156: =Datos!L55 -> 0 | N156: =Datos!M55 -> 0 | O156: =Datos!N55 -> 0 | P156: =Datos!O55 -> 0.024
G170: Nota: La disminución en el servicio de telegramas y de fax se debió al uso de nuevos medios de comunicación.
B174: VOLUMEN DE SERVICIOS MÓVILES SATELITALES
B175: ENERO 2016
B177: SERVICIOS MÓVILES SATELITALES | C177: Unidad de Medida | D177: =Datos!C71 -> 2015
D178: Ene | E178: Feb | F178: Mar | G178: Abr | H178: May | I178: Jun | J178: Jul | K178: Ago | L178: Sep | M178: Oct | N178: Nov | O178: Dic | P178: Total
B179: MOVISAT VOZ
B180: Terminales | C180: Terminales | D180: =Datos!C74 -> 7200 | E180: =Datos!D74 -> 0 | F180: =Datos!E74 -> 0 | G180: =Datos!F74 -> 0 | H180: =Datos!G74 -> 0 | I180: =Datos!H74 -> 0 | J180: =Datos!I74 -> 0 | K180: =Datos!J74 -> 0 | L180: =Datos!K74 -> 0 | M180: =Datos!L74 -> 0 | N180: =Datos!M74 -> 0 | O180: =Datos!N74 -> 0 | P180: =Datos!O74 -> 7200
B181: Telefonía Rural Banda KU | D181: =Datos!C75 -> 3387 | E181: =Datos!D75 -> 0 | F181: =Datos!E75 -> 0 | G181: =Datos!F75 -> 0 | H181: =Datos!G75 -> 0 | I181: =Datos!H75 -> 0 | J181: =Datos!I75 -> 0 | K181: =Datos!J75 -> 0 | L181: =Datos!K75 -> 0 | M181: =Datos!L75 -> 0 | N181: =Datos!M75 -> 0 | O181: =Datos!N75 -> 0 | P181: =Datos!O75 -> 3387
B182: Telefonía Rural Banda Ku (11K) | D182: =Datos!C76 -> 3813 | E182: =Datos!D76 -> 0 | F182: =Datos!E76 -> 0 | G182: =Datos!F76 -> 0 | H182: =Datos!G76 -> 0 | I182: =Datos!H76 -> 0 | J182: =Datos!I76 -> 0 | K182: =Datos!J76 -> 0 | L182: =Datos!K76 -> 0 | M182: =Datos!L76 -> 0 | N182: =Datos!M76 -> 0 | O182: =Datos!N76 -> 0 | P182: =Datos!O76 -> 3813
B184: SERVICIOS MÓVILES SATELITALES | C184: Unidad de Medida | D184: =Datos!C64 -> 2016
D185: Ene | E185: Feb | F185: Mar | G185: Abr | H185: May | I185: Jun | J185: Jul | K185: Ago | L185: Sep | M185: Oct | N185: Nov | O185: Dic | P185: Total
B186: MOVISAT VOZ
B187: Terminales | C187: Terminales | D187: =Datos!C67 -> 7178 | E187: =Datos!D67 -> 0 | F187: =Datos!E67 -> 0 | G187: =Datos!F67 -> 0 | H187: =Datos!G67 -> 0 | I187: =Datos!H67 -> 0 | J187: =Datos!I67 -> 0 | K187: =Datos!J67 -> 0 | L187: =Datos!K67 -> 0 | M187: =Datos!L67 -> 0 | N187: =Datos!M67 -> 0 | O187: =Datos!N67 -> 0 | P187: =Datos!O67 -> 7178
B188: Telefonía Rural Banda KU | D188: =Datos!C68 -> 3389 | E188: =Datos!D68 -> 0 | F188: =Datos!E68 -> 0 | G188: =Datos!F68 -> 0 | H188: =Datos!G68 -> 0 | I188: =Datos!H68 -> 0 | J188: =Datos!I68 -> 0 | K188: =Datos!J68 -> 0 | L188: =Datos!K68 -> 0 | M188: =Datos!L68 -> 0 | N188: =Datos!M68 -> 0 | O188: =Datos!N68 -> 0 | P188: =Datos!O68 -> 3389
B189: Telefonía Rural Banda Ku (11K) | D189: =Datos!C69 -> 3789 | E189: =Datos!D69 -> 0 | F189: =Datos!E69 -> 0 | G189: =Datos!F69 -> 0 | H189: =Datos!G69 -> 0 | I189: =Datos!H69 -> 0 | J189: =Datos!I69 -> 0 | K189: =Datos!J69 -> 0 | L189: =Datos!K69 -> 0 | M189: =Datos!L69 -> 0 | N189: =Datos!M69 -> 0 | O189: =Datos!N69 -> 0 | P189: =Datos!O69 -> 3789
B202: VOLUMEN DE SERVICIOS MÓVILES SATELITALES
B203: ENERO 2016
B205: SERVICIOS MÓVILES SATELITALES | C205: Unidad de Medida | D205: =Datos!C85 -> 2015
D206: Ene | E206: Feb | F206: Mar | G206: Abr | H206: May | I206: Jun | J206: Jul | K206: Ago | L206: Sep | M206: Oct | N206: Nov | O206: Dic | P206: Total
B207: MOVISAT VOZ
B208: Minutos | C208: Miles de minutos | D208: =Datos!C88 -> 1327.923 | E208: =Datos!D88 -> 0 | F208: =Datos!E88 -> 0 | G208: =Datos!F88 -> 0 | H208: =Datos!G88 -> 0 | I208: =Datos!H88 -> 0 | J208: =Datos!I88 -> 0 | K208: =Datos!J88 -> 0 | L208: =Datos!K88 -> 0 | M208: =Datos!L88 -> 0 | N208: =Datos!M88 -> 0 | O208: =Datos!N88 -> 0 | P208: =Datos!O88 -> 1327.923
B209: Telefonía Rural Banda Ku | D209: =Datos!C89 -> 268.023 | E209: =Datos!D89 -> 0 | F209: =Datos!E89 -> 0 | G209: =Datos!F89 -> 0 | H209: =Datos!G89 -> 0 | I209: =Datos!H89 -> 0 | J209: =Datos!I89 -> 0 | K209: =Datos!J89 -> 0 | L209: =Datos!K89 -> 0 | M209: =Datos!L89 -> 0 | N209: =Datos!M89 -> 0 | O209: =Datos!N89 -> 0 | P209: =Datos!O89 -> 268.023
B210: Telefonía Rural Banda Ku (11k) | D210: =Datos!C90 -> 1059.9 | E210: =Datos!D90 -> 0 | F210: =Datos!E90 -> 0 | G210: =Datos!F90 -> 0 | H210: =Datos!G90 -> 0 | I210: =Datos!H90 -> 0 | J210: =Datos!I90 -> 0 | K210: =Datos!J90 -> 0 | L210: =Datos!K90 -> 0 | M210: =Datos!L90 -> 0 | N210: =Datos!M90 -> 0 | O210: =Datos!N90 -> 0 | P210: =Datos!O90 -> 1059.9
B212: SERVICIOS MÓVILES SATELITALES | C212: Unidad de Medida | D212: =Datos!C78 -> 2016
D213: Ene | E213: Feb | F213: Mar | G213: Abr | H213: May | I213: Jun | J213: Jul | K213: Ago | L213: Sep | M213: Oct | N213: Nov | O213: Dic | P213: Total
B214: MOVISAT VOZ
B215: Minutos | C215: Miles de minutos | D215: =Datos!C81 -> 622.43 | E215: =Datos!D81 -> 0 | F215: =Datos!E81 -> 0 | G215: =Datos!F81 -> 0 | H215: =Datos!G81 -> 0 | I215: =Datos!H81 -> 0 | J215: =Datos!I81 -> 0 | K215: =Datos!J81 -> 0 | L215: =Datos!K81 -> 0 | M215: =Datos!L81 -> 0 | N215: =Datos!M81 -> 0 | O215: =Datos!N81 -> 0 | P215: =Datos!O81 -> 622.43
B216: Telefonía Rural Banda Ku | D216: =Datos!C82 -> 279.981 | E216: =Datos!D82 -> 0 | F216: =Datos!E82 -> 0 | G216: =Datos!F82 -> 0 | H216: =Datos!G82 -> 0 | I216: =Datos!H82 -> 0 | J216: =Datos!I82 -> 0 | K216: =Datos!J82 -> 0 | L216: =Datos!K82 -> 0 | M216: =Datos!L82 -> 0 | N216: =Datos!M82 -> 0 | O216: =Datos!N82 -> 0 | P216: =Datos!O82 -> 279.981
B217: Telefonía Rural Banda Ku (11k) | D217: =Datos!C83 -> 342.449 | E217: =Datos!D83 -> 0 | F217: =Datos!E83 -> 0 | G217: =Datos!F83 -> 0 | H217: =Datos!G83 -> 0 | I217: =Datos!H83 -> 0 | J217: =Datos!I83 -> 0 | K217: =Datos!J83 -> 0 | L217: =Datos!K83 -> 0 | M217: =Datos!L83 -> 0 | N217: =Datos!M83 -> 0 | O217: =Datos!N83 -> 0 | P217: =Datos!O83 -> 342.449
B230: VOLUMEN DE SERVICIOS MÓVILES SATELITALES
B231: ENERO 2016
B233: SERVICIOS MÓVILES SATELITALES | C233: Unidad de Medida | D233: =Datos!C99 -> 2015
D234: Ene | E234: Feb | F234: Mar | G234: Abr | H234: May | I234: Jun | J234: Jul | K234: Ago | L234: Sep | M234: Oct | N234: Nov | O234: Dic | P234: Total
B235: MOVISAT VOZ
B236: Llamadas | C236: Miles de llamadas | D236: =Datos!C102 -> 471.027 | E236: =Datos!D102 -> 0 | F236: =Datos!E102 -> 0 | G236: =Datos!F102 -> 0 | H236: =Datos!G102 -> 0 | I236: =Datos!H102 -> 0 | J236: =Datos!I102 -> 0 | K236: =Datos!J102 -> 0 | L236: =Datos!K102 -> 0 | M236: =Datos!L102 -> 0 | N236: =Datos!M102 -> 0 | O236: =Datos!N102 -> 0 | P236: =Datos!O102 -> 471.027
B237: Telefonía Rural Banda Ku | D237: =Datos!C103 -> 65.129 | E237: =Datos!D103 -> 0 | F237: =Datos!E103 -> 0 | G237: =Datos!F103 -> 0 | H237: =Datos!G103 -> 0 | I237: =Datos!H103 -> 0 | J237: =Datos!I103 -> 0 | K237: =Datos!J103 -> 0 | L237: =Datos!K103 -> 0 | M237: =Datos!L103 -> 0 | N237: =Datos!M103 -> 0 | O237: =Datos!N103 -> 0 | P237: =Datos!O103 -> 65.129
B238: Telefonía Rural Banda Ku (11k) | D238: =Datos!C104 -> 405.898 | E238: =Datos!D104 -> 0 | F238: =Datos!E104 -> 0 | G238: =Datos!F104 -> 0 | H238: =Datos!G104 -> 0 | I238: =Datos!H104 -> 0 | J238: =Datos!I104 -> 0 | K238: =Datos!J104 -> 0 | L238: =Datos!K104 -> 0 | M238: =Datos!L104 -> 0 | N238: =Datos!M104 -> 0 | O238: =Datos!N104 -> 0 | P238: =Datos!O104 -> 405.898
B240: SERVICIOS MÓVILES SATELITALES | C240: Unidad de Medida | D240: =Datos!C92 -> 2016
D241: Ene | E241: Feb | F241: Mar | G241: Abr | H241: May | I241: Jun | J241: Jul | K241: Ago | L241: Sep | M241: Oct | N241: Nov | O241: Dic | P241: Total
B242: MOVISAT VOZ
B243: Llamadas | C243: Miles de llamadas | D243: =Datos!C95 -> 975.458 | E243: =Datos!D95 -> 0 | F243: =Datos!E95 -> 0 | G243: =Datos!F95 -> 0 | H243: =Datos!G95 -> 0 | I243: =Datos!H95 -> 0 | J243: =Datos!I95 -> 0 | K243: =Datos!J95 -> 0 | L243: =Datos!K95 -> 0 | M243: =Datos!L95 -> 0 | N243: =Datos!M95 -> 0 | O243: =Datos!N95 -> 0 | P243: =Datos!O95 -> 975.458
B244: Telefonía Rural Banda Ku | D244: =Datos!C96 -> 63.545 | E244: =Datos!D96 -> 0 | F244: =Datos!E96 -> 0 | G244: =Datos!F96 -> 0 | H244: =Datos!G96 -> 0 | I244: =Datos!H96 -> 0 | J244: =Datos!I96 -> 0 | K244: =Datos!J96 -> 0 | L244: =Datos!K96 -> 0 | M244: =Datos!L96 -> 0 | N244: =Datos!M96 -> 0 | O244: =Datos!N96 -> 0 | P244: =Datos!O96 -> 63.545
B245: Telefonía Rural Banda Ku (11k) | D245: =Datos!C97 -> 911.913 | E245: =Datos!D97 -> 0 | F245: =Datos!E97 -> 0 | G245: =Datos!F97 -> 0 | H245: =Datos!G97 -> 0 | I245: =Datos!H97 -> 0 | J245: =Datos!I97 -> 0 | K245: =Datos!J97 -> 0 | L245: =Datos!K97 -> 0 | M245: =Datos!L97 -> 0 | N245: =Datos!M97 -> 0 | O245: =Datos!N97 -> 0 | P245: =Datos!O97 -> 911.913
B258: VOLUMEN DE SERVICIOS SATELITALES DE TELEPUERTOS
B259: ENERO 2016
B261: TELEPUERTOS | C261: Unidad de Medida | D261: =Datos!C107 -> 2016
D262: Ene | E262: Feb | F262: Mar | G262: Abr | H262: May | I262: Jun | J262: Jul | K262: Ago | L262: Sep | M262: Oct | N262: Nov | O262: Dic | P262: Total
B263: Televisión
B264: T.V Permanente | C264: Red | D264: =Datos!C110 -> 4 | E264: =Datos!D110 -> 0 | F264: =Datos!E110 -> 0 | G264: =Datos!F110 -> 0 | H264: =Datos!G110 -> 0 | I264: =Datos!H110 -> 0 | J264: =Datos!I110 -> 0 | K264: =Datos!J110 -> 0 | L264: =Datos!K110 -> 0 | M264: =Datos!L110 -> 0 | N264: =Datos!M110 -> 0 | O264: =Datos!N110 -> 0 | P264: =Datos!O110 -> 4
B265: Enlaces locales | C265: Enlaces | D265: =Datos!C111 -> 22 | E265: =Datos!D111 -> 0 | F265: =Datos!E111 -> 0 | G265: =Datos!F111 -> 0 | H265: =Datos!G111 -> 0 | I265: =Datos!H111 -> 0 | J265: =Datos!I111 -> 0 | K265: =Datos!J111 -> 0 | L265: =Datos!K111 -> 0 | M265: =Datos!L111 -> 0 | N265: =Datos!M111 -> 0 | O265: =Datos!N111 -> 0 | P265: =Datos!O111 -> 22
B266: Enrutamiento | C266: Enlaces | D266: =Datos!C112 -> 4 | E266: =Datos!D112 -> 0 | F266: =Datos!E112 -> 0 | G266: =Datos!F112 -> 0 | H266: =Datos!G112 -> 0 | I266: =Datos!H112 -> 0 | J266: =Datos!I112 -> 0 | K266: =Datos!J112 -> 0 | L266: =Datos!K112 -> 0 | M266: =Datos!L112 -> 0 | N266: =Datos!M112 -> 0 | O266: =Datos!N112 -> 0 | P266: =Datos!O112 -> 4
B267: Estaciones Terrenas para Voz y Datos | C267: Enlaces | D267: =Datos!C113 -> 1 | E267: =Datos!D113 -> 0 | F267: =Datos!E113 -> 0 | G267: =Datos!F113 -> 0 | H267: =Datos!G113 -> 0 | I267: =Datos!H113 -> 0 | J267: =Datos!I113 -> 0 | K267: =Datos!J113 -> 0 | L267: =Datos!K113 -> 0 | M267: =Datos!L113 -> 0 | N267: =Datos!M113 -> 0 | O267: =Datos!N113 -> 0 | P267: =Datos!O113 -> 1
B268: Estaciones Terrenas receptoras | C268: Eventos | D268: =Datos!C114 -> 1 | E268: =Datos!D114 -> 0 | F268: =Datos!E114 -> 0 | G268: =Datos!F114 -> 0 | H268: =Datos!G114 -> 0 | I268: =Datos!H114 -> 0 | J268: =Datos!I114 -> 0 | K268: =Datos!J114 -> 0 | L268: =Datos!K114 -> 0 | M268: =Datos!L114 -> 0 | N268: =Datos!M114 -> 0 | O268: =Datos!N114 -> 0 | P268: =Datos!O114 -> 1
B269: Uso de capacidad satelital | C269: Mhz. | D269: =Datos!C115 -> 144 | E269: =Datos!D115 -> 0 | F269: =Datos!E115 -> 0 | G269: =Datos!F115 -> 0 | H269: =Datos!G115 -> 0 | I269: =Datos!H115 -> 0 | J269: =Datos!I115 -> 0 | K269: =Datos!J115 -> 0 | L269: =Datos!K115 -> 0 | M269: =Datos!L115 -> 0 | N269: =Datos!M115 -> 0 | O269: =Datos!N115 -> 0 | P269: =Datos!O115 -> 144
B270: Interconexión de redes | C270: Equipos | D270: =Datos!C116 -> 16 | E270: =Datos!D116 -> 0 | F270: =Datos!E116 -> 0 | G270: =Datos!F116 -> 0 | H270: =Datos!G116 -> 0 | I270: =Datos!H116 -> 0 | J270: =Datos!I116 -> 0 | K270: =Datos!J116 -> 0 | L270: =Datos!K116 -> 0 | M270: =Datos!L116 -> 0 | N270: =Datos!M116 -> 0 | O270: =Datos!N116 -> 0 | P270: =Datos!O116 -> 16
B271: T.V Ocasional | C271: Eventos | D271: =Datos!C117 -> 0 | E271: =Datos!D117 -> 0 | F271: =Datos!E117 -> 0 | G271: =Datos!F117 -> 0 | H271: =Datos!G117 -> 0 | I271: =Datos!H117 -> 0 | J271: =Datos!I117 -> 0 | K271: =Datos!J117 -> 0 | L271: =Datos!K117 -> 0 | M271: =Datos!L117 -> 0 | N271: =Datos!M117 -> 0 | O271: =Datos!N117 -> 0 | P271: =Datos!O117 -> 0
B272: Giras Presidenciales | C272: Giras | D272: =Datos!C118 -> 6 | E272: =Datos!D118 -> 0 | F272: =Datos!E118 -> 0 | G272: =Datos!F118 -> 0 | H272: =Datos!G118 -> 0 | I272: =Datos!H118 -> 0 | J272: =Datos!I118 -> 0 | K272: =Datos!J118 -> 0 | L272: =Datos!K118 -> 0 | M272: =Datos!L118 -> 0 | N272: =Datos!M118 -> 0 | O272: =Datos!N118 -> 0 | P272: =Datos!O118 -> 6
B273: Enlaces Terrenas Transportables | C273: Renta | D273: =Datos!C119 -> 0 | E273: =Datos!D119 -> 0 | F273: =Datos!E119 -> 0 | G273: =Datos!F119 -> 0 | H273: =Datos!G119 -> 0 | I273: =Datos!H119 -> 0 | J273: =Datos!I119 -> 0 | K273: =Datos!J119 -> 0 | L273: =Datos!K119 -> 0 | M273: =Datos!L119 -> 0 | N273: =Datos!M119 -> 0 | O273: =Datos!N119 -> 0 | P273: =Datos!O119 -> 0
B274: Tiempo de Arrendamiento | C274: Días | D274: =Datos!C120 -> 0 | E274: =Datos!D120 -> 0 | F274: =Datos!E120 -> 0 | G274: =Datos!F120 -> 0 | H274: =Datos!G120 -> 0 | I274: =Datos!H120 -> 0 | J274: =Datos!I120 -> 0 | K274: =Datos!J120 -> 0 | L274: =Datos!K120 -> 0 | M274: =Datos!L120 -> 0 | N274: =Datos!M120 -> 0 | O274: =Datos!N120 -> 0 | P274: =Datos!O120 -> 0
B275: Centro de Datos | C275: Unidad Interconexión (mts2)
B276: Hosting | D276: =Datos!C122 -> 122 | E276: =Datos!D122 -> 0 | F276: =Datos!E122 -> 0 | G276: =Datos!F122 -> 0 | H276: =Datos!G122 -> 0 | I276: =Datos!H122 -> 0 | J276: =Datos!I122 -> 0 | K276: =Datos!J122 -> 0 | L276: =Datos!K122 -> 0 | M276: =Datos!L122 -> 0 | N276: =Datos!M122 -> 0 | O276: =Datos!N122 -> 0 | P276: =Datos!O122 -> 122
B278: TELEPUERTOS | C278: Unidad de Medida | D278: =Datos!T107 -> VARIACIÓN 2016/2015 (%)
D279: Ene | E279: Feb | F279: Mar | G279: Abr | H279: May | I279: Jun | J279: Jul | K279: Ago | L279: Sep | M279: Oct | N279: Nov | O279: Dic | P279: Total
B280: Televisión
B281: T.V Permanente | C281: Red | D281: =Datos!T110 -> 0 | E281: =Datos!U110 -> 0 | F281: =Datos!V110 -> 0 | G281: =Datos!W110 -> 0 | H281: =Datos!X110 -> 0 | I281: =Datos!Y110 -> 0 | J281: =Datos!Z110 -> 0 | K281: =Datos!AA110 -> 0 | L281: =Datos!AB110 -> 0 | M281: =Datos!AC110 -> 0 | N281: =Datos!AD110 -> 0 | O281: =Datos!AE110 -> 0 | P281: =Datos!AF110 -> 0
B282: Enlaces locales | C282: Enlaces | D282: =Datos!T111 -> 0 | E282: =Datos!U111 -> 0 | F282: =Datos!V111 -> 0 | G282: =Datos!W111 -> 0 | H282: =Datos!X111 -> 0 | I282: =Datos!Y111 -> 0 | J282: =Datos!Z111 -> 0 | K282: =Datos!AA111 -> 0 | L282: =Datos!AB111 -> 0 | M282: =Datos!AC111 -> 0 | N282: =Datos!AD111 -> 0 | O282: =Datos!AE111 -> 0 | P282: =Datos!AF111 -> 0
B283: Enrutamiento | C283: Enlaces | D283: =Datos!T112 -> 33.33333333 | E283: =Datos!U112 -> 0 | F283: =Datos!V112 -> 0 | G283: =Datos!W112 -> 0 | H283: =Datos!X112 -> 0 | I283: =Datos!Y112 -> 0 | J283: =Datos!Z112 -> 0 | K283: =Datos!AA112 -> 0 | L283: =Datos!AB112 -> 0 | M283: =Datos!AC112 -> 0 | N283: =Datos!AD112 -> 0 | O283: =Datos!AE112 -> 0 | P283: =Datos!AF112 -> 33.33333333
B284: Estaciones Terrenas para Voz y Datos | C284: Enlaces | D284: =Datos!T113 -> 0 | E284: =Datos!U113 -> 0 | F284: =Datos!V113 -> 0 | G284: =Datos!W113 -> 0 | H284: =Datos!X113 -> 0 | I284: =Datos!Y113 -> 0 | J284: =Datos!Z113 -> 0 | K284: =Datos!AA113 -> 0 | L284: =Datos!AB113 -> 0 | M284: =Datos!AC113 -> 0 | N284: =Datos!AD113 -> 0 | O284: =Datos!AE113 -> 0 | P284: =Datos!AF113 -> 0
B285: Estaciones Terrenas receptoras | C285: Eventos | D285: =Datos!T114 -> 0 | E285: =Datos!U114 -> 0 | F285: =Datos!V114 -> 0 | G285: =Datos!W114 -> 0 | H285: =Datos!X114 -> 0 | I285: =Datos!Y114 -> 0 | J285: =Datos!Z114 -> 0 | K285: =Datos!AA114 -> 0 | L285: =Datos!AB114 -> 0 | M285: =Datos!AC114 -> 0 | N285: =Datos!AD114 -> 0 | O285: =Datos!AE114 -> 0 | P285: =Datos!AF114 -> 0
B286: Uso de capacidad satelital | C286: Mhz. | D286: =Datos!T115 -> 14.2041399 | E286: =Datos!U115 -> 0 | F286: =Datos!V115 -> 0 | G286: =Datos!W115 -> 0 | H286: =Datos!X115 -> 0 | I286: =Datos!Y115 -> 0 | J286: =Datos!Z115 -> 0 | K286: =Datos!AA115 -> 0 | L286: =Datos!AB115 -> 0 | M286: =Datos!AC115 -> 0 | N286: =Datos!AD115 -> 0 | O286: =Datos!AE115 -> 0 | P286: =Datos!AF115 -> 14.2041399
B287: Interconexión de redes | C287: Equipos | D287: =Datos!T116 -> 6.666666667 | E287: =Datos!U116 -> 0 | F287: =Datos!V116 -> 0 | G287: =Datos!W116 -> 0 | H287: =Datos!X116 -> 0 | I287: =Datos!Y116 -> 0 | J287: =Datos!Z116 -> 0 | K287: =Datos!AA116 -> 0 | L287: =Datos!AB116 -> 0 | M287: =Datos!AC116 -> 0 | N287: =Datos!AD116 -> 0 | O287: =Datos!AE116 -> 0 | P287: =Datos!AF116 -> 6.666666667
B288: T.V Ocasional | C288: Eventos | D288: =Datos!T117 -> 0 | E288: =Datos!U117 -> 0 | F288: =Datos!V117 -> 0 | G288: =Datos!W117 -> 0 | H288: =Datos!X117 -> 0 | I288: =Datos!Y117 -> 0 | J288: =Datos!Z117 -> 0 | K288: =Datos!AA117 -> 0 | L288: =Datos!AB117 -> 0 | M288: =Datos!AC117 -> 0 | N288: =Datos!AD117 -> 0 | O288: =Datos!AE117 -> 0 | P288: =Datos!AF117 -> 0
B289: Giras Presidenciales | C289: Giras | D289: =Datos!T118 -> 0 | E289: =Datos!U118 -> 0 | F289: =Datos!V118 -> 0 | G289: =Datos!W118 -> 0 | H289: =Datos!X118 -> 0 | I289: =Datos!Y118 -> 0 | J289: =Datos!Z118 -> 0 | K289: =Datos!AA118 -> 0 | L289: =Datos!AB118 -> 0 | M289: =Datos!AC118 -> 0 | N289: =Datos!AD118 -> 0 | O289: =Datos!AE118 -> 0 | P289: =Datos!AF118 -> 0
B290: Enlaces Terrenas Transportables | C290: Renta | D290: =Datos!T119 -> 0 | E290: =Datos!U119 -> 0 | F290: =Datos!V119 -> 0 | G290: =Datos!W119 -> 0 | H290: =Datos!X119 -> 0 | I290: =Datos!Y119 -> 0 | J290: =Datos!Z119 -> 0 | K290: =Datos!AA119 -> 0 | L290: =Datos!AB119 -> 0 | M290: =Datos!AC119 -> 0 | N290: =Datos!AD119 -> 0 | O290: =Datos!AE119 -> 0 | P290: =Datos!AF119 -> 0
B291: Tiempo de Arrendamiento | C291: Días | D291: =Datos!T120 -> 0 | E291: =Datos!U120 -> 0 | F291: =Datos!V120 -> 0 | G291: =Datos!W120 -> 0 | H291: =Datos!X120 -> 0 | I291: =Datos!Y120 -> 0 | J291: =Datos!Z120 -> 0 | K291: =Datos!AA120 -> 0 | L291: =Datos!AB120 -> 0 | M291: =Datos!AC120 -> 0 | N291: =Datos!AD120 -> 0 | O291: =Datos!AE120 -> 0 | P291: =Datos!AF120 -> 0
B292: Centro de Datos | C292: Unidad Interconexión (mts2)
B293: Hosting | D293: =Datos!T122 -> 0 | E293: =Datos!U122 -> 0 | F293: =Datos!V122 -> 0 | G293: =Datos!W122 -> 0 | H293: =Datos!X122 -> 0 | I293: =Datos!Y122 -> 0 | J293: =Datos!Z122 -> 0 | K293: =Datos!AA122 -> 0 | L293: =Datos!AB122 -> 0 | M293: =Datos!AC122 -> 0 | N293: =Datos!AD122 -> 0 | O293: =Datos!AE122 -> 0 | P293: =Datos!AF122 -> 0
